Cogmind - Beta 15 @@@ ROGUE MODE // 2025.07.25 @ 05:53:42 Player: Sunsh1n3 Result: Destroyed by Y-45 Defender with Heavy Assault Rifle Performance ------------- Evolutions (2) 1000 Regions Visited (5) 1000 Robots Destroyed (19) 95 Value Destroyed (543) 543 Prototype IDs (24) 480 Alien Tech Used (0) 0 Bonus (300) 300 TOTAL SCORE: 3418 Bonus ------- Aligned with FarCom 300 Cogmind --------- Core Integrity 0/550 Matter 300/300 Energy 100/100 System Corruption 0% Temperature Cool (0) Movement Core (700) Ox13 Location -8/Materials Parts ------- > --- POWER (1) -------- (None) > --- PROPULSION (4) --- (None) > --- UTILITY (4) ------ High-capacity Storage Unit Melee Analysis Suite > --- WEAPON (2) ------- (None) > --- INVENTORY (20) --- Ion Engine Light Treads Improved Treads Improved Treads Wheel Flying Fortress v7 Scrap Suit Large Storage Unit Sensor Array Splice Drone Bay Peak State ------------ > --- POWER ------------ Light Nuclear Core > --- PROPULSION ------- Aluminum Leg Carbon-fiber Leg > --- UTILITY ---------- High-capacity Storage Unit Melee Analysis Suite Melee Analysis Suite > --- WEAPON ----------- Katana > --- INVENTORY -------- Ion Engine Light Treads Improved Treads Improved Treads Wheel Flying Fortress v7 Scrap Suit Large Storage Unit Sensor Array Splice Drone Bay [Rating: 22] Favorites ----------- Power Light Nuclear Core Engine Ion Engine Power Core Light Nuclear Core Propulsion Light Treads Treads Light Treads Leg Aluminum Leg Utility ECM Suite Device ECM Suite Storage High-capacity Storage Unit Processor Melee Analysis Suite Weapon Assault Rifle Energy Gun Particle Gun Ballistic Gun Assault Rifle Launcher Rocket Launcher Slashing Weapon Katana Build | -11 -10 -10 -10 -9 -8 ------- Run | Yrd Mat Min Exi Min Mat Slots Evolved 4 | . . . . . 4 Power . | . . . . . . Propulsion 2 | . . . . . 2 Utility 2 | . . . . . 2 Weapon . | . . . . . . Parts Attached 28 | 6 6 . 1 2 13 Power 3 | 1 2 . . . . Engine 2 | 1 1 . . . . Core 1 | . 1 . . . . Reactor . | . . . . . . Propulsion 10 | 2 . . . 2 6 Treads 4 | 2 . . . 2 . Leg 6 | . . . . . 6 Wheel . | . . . . . . Hover . | . . . . . . Flight . | . . . . . . Utility 9 | 1 3 . 1 . 4 Device 3 | . 1 . . . 2 Storage 4 | 1 2 . 1 . . Processor 2 | . . . . . 2 Hackware . | . . . . . . Protection . | . . . . . . Artifact . | . . . . . . Weapon 6 | 2 1 . . . 3 Energy Gun 2 | . . . . . 2 Energy Cannon . | . . . . . . Ballistic Gun 2 | 2 . . . . . Ballistic Cannon . | . . . . . . Launcher 1 | . 1 . . . . Special Weapon . | . . . . . . Impact Weapon . | . . . . . . Slashing Weapon 1 | . . . . . 1 Piercing Weapon . | . . . . . . Special Melee Weapon . | . . . . . . Unidentified Prototypes 1 | . . . . . 1 Parts Lost 18 | . 1 . . . 17 Power 2 | . 1 . . . 1 Propulsion 6 | . . . . . 6 Utility 4 | . . . . . 4 Weapon 6 | . . . . . 6 Highest Loss Streak 5 | . 1 . . . 5 To Critical Strikes . | . . . . . . Average Backups 10 | 2 7 10 10 13 10 Power 1 | . 1 1 1 1 1 Propulsion 4 | 1 4 5 5 6 5 Utility 3 | . . 3 3 5 4 Weapon . | . 1 1 1 1 . Tool/Special . | . . . . . . Unused Backups 8 | . 2 . . . 6 Power 2 | . 1 . . . 1 Propulsion 2 | . . . . . 2 Utility 3 | . . . . . 3 Weapon 1 | . 1 . . . . Tool/Special . | . . . . . . Average Slot Usage (%) 92 | . 98 100 100 99 75 Engine 3 | . 13 . . . . Core 9 | . . 14 14 14 8 Treads 19 | . 28 28 28 27 . Leg 7 | . . . . . 25 Device 14 | . 12 14 14 14 15 Storage 12 | . 14 14 14 14 9 Ballistic Gun 21 | . 26 28 28 28 8 Peak Build Rating 22 | 6 10 10 13 17 22 Average Rating 12 | 5 7 10 10 14 17 On Entrance 9 | . 6 10 10 13 17 Naked Turns . | . . . . . . Heaviest Build 91 | 14 91 31 51 51 54 Greatest Support 46 | 40 40 40 40 46 40 Greatest Overweight (x) 15 | . 2 . 1 1 15 Average Overweight (x) . | . . . . 1 1 Largest Inventory Capacity 25 | 8 25 15 20 20 20 Average Capacity 16 | 7 10 15 17 20 20 Most Carried 20 | 5 10 10 15 20 20 Average Carried 12 | 3 7 10 11 17 14 Final Capacity 20 | 8 15 15 20 20 20 Final Carried 19 | 5 10 10 15 19 14 Class Distribution -------------------- 83% | Mutant 14% | Infiltrator-Skirmisher Dominant Class ---------------- Mutant | -10/Materials Mutant | -10/Mines Mutant | -10/Exiles Mutant | -9/Mines Infiltrator-Skirmisher | -8/Materials Resources | -11 -10 -10 -10 -9 -8 ----------- Run | Yrd Mat Min Exi Min Mat Matter Collected 734 | 143 362 . . 30 199 Remotely . | . . . . . . Salvage Created 778 | . 425 . . . 353 Parts 30 | . 16 . . . 14 Haulers Intercepted . | . . . . . . Recyclers Shooed 3 | . 1 . . . 2 Parts Field Recycled . | . . . . . . Retrieved Matter . | . . . . . . Parts Self-Destructed . | . . . . . . Prevented . | . . . . . . Kills | -11 -10 -10 -10 -9 -8 ------- Run | Yrd Mat Min Exi Min Mat Combat Hostiles Destroyed 14 | . 8 . . . 6 Melee 3 | . . . . . 3 Guns 10 | . 8 . . . 2 AOE 1 | . . . . . 1 Classes Destroyed 5 | . 3 . . . 2 Worker 1 | . . . . . 1 Recycler 4 | . 3 . . . 1 Swarmer 3 | . 3 . . . . Grunt 10 | . 5 . . . 5 Duelist 1 | . . . . . 1 Best Kill Streak 4 | . 3 . . . 4 Combat Bots Only 3 | . 3 . . . 3 Max Kills in Single Turn 1 | . 1 . . . 1 Gunslinging . | . . . . . . Exploded 1 | . . . . . 1 Melee 1 | . . . . . 1 Uniques/NPCs Destroyed . | . . . . . . Combat | -11 -10 -10 -10 -9 -8 -------- Run | Yrd Mat Min Exi Min Mat Hostile Shots Fired 181 | . 77 . . . 104 Missed 50 | . 26 . . . 24 Hits 131 | . 51 . . . 80 Melee 12 | . . . . . 12 Projectile 119 | . 51 . . . 68 Critical Strikes 6 | . 1 . . . 5 Damage Taken 2148 | . 570 . . . 1578 Core 612 | . 61 . . . 551 Absorbed by Shields . | . . . . . . Core Remaining (%) 87 | 100 . . . 75 . Volleys Fired 55 | . 30 . . . 25 Largest 2 | . 2 . . . 2 Hottest 85 | . 40 . . . 85 Shots Fired 88 | . 59 . . . 29 Gun 85 | . 58 . . . 27 Cannon . | . . . . . . Launcher 3 | . 1 . . . 2 Special . | . . . . . . Kinetic 78 | . 58 . . . 20 Thermal 3 | . . . . . 3 Explosive 3 | . 1 . . . 2 Electromagnetic 4 | . . . . . 4 Robot Hit Streak 11 | . 11 . . . 10 Robot Miss Streak 4 | . 4 . . . 2 Penetration Max . | . . . . . . Secondary Targets 1 | . 1 . . . . Max Gunslinging Chain 1 | . 1 . . . . Shots Hit Robots 64 | . 33 . . . 31 Core Hits 34 | . 15 . . . 19 Critical Kills 1 | . 1 . . . . Critical Parts Destroyed . | . . . . . . Critical Strikes 2 | . 1 . . . 1 Destroy 1 | . 1 . . . . Sever 1 | . . . . . 1 Melee Attacks 10 | . . . . . 10 Impact . | . . . . . . Slashing 10 | . . . . . 10 Piercing . | . . . . . . Sneak Attacks 2 | . . . . . 2 Combat Hostiles . | . . . . . . Follow-up Attacks . | . . . . . . Damage Inflicted 1346 | . 452 . . . 894 Guns 729 | . 448 . . . 281 Cannons . | . . . . . . Explosions 194 | . . . . . 194 Melee 353 | . . . . . 353 Ramming 70 | . 4 . . . 66 Kinetic 617 | . 448 . . . 169 Thermal 50 | . . . . . 50 Explosive 194 | . . . . . 194 Electromagnetic 62 | . . . . . 62 Impact . | . . . . . . Slashing 353 | . . . . . 353 Piercing . | . . . . . . Highest Corruption . | . . . . . . Average Corruption . | . . . . . . Corruption Purged . | . . . . . . Corruption Blocked . | . . . . . . Overload Shots . | . . . . . . Overflow Damage 86 | . . . . . 86 Projectiles . | . . . . . . Explosions 3 | . . . . . 3 Melee 83 | . . . . . 83 Knockbacks . | . . . . . . Impact . | . . . . . . Kinetic . | . . . . . . Secondary . | . . . . . . Self-Inflicted Damage 154 | . . . . . 154 Shots 3 | . . . . . 3 Rammed 2 | . 1 . . . 1 Targets Rammed 30 | . 3 . . . 27 Kicked 26 | . . . . . 26 Crushed 2 | . 2 . . . . Highest Temperature 69 | . 7 . . . 69 Average Temperature 23 | . 3 . . . 27 Received Heat Transfer 738 | . 279 . . . 459 Siege Activations . | . . . . . . Martial Activations . | . . . . . . Shielding Activations . | . . . . . . Robots Disrupted . | . . . . . . Combat Hostiles . | . . . . . . Robots Corrupted . | . . . . . . Combat Hostiles . | . . . . . . Parts Fried . | . . . . . . Impact Corruptions . | . . . . . . Robots Melted . | . . . . . . Combat Hostiles . | . . . . . . Parts Melted . | . . . . . . Heat Transferred 111 | . . . . . 111 Parts Sabotaged . | . . . . . . Parts Stolen . | . . . . . . Parts Stripped . | . . . . . . Power Chain Reactions . | . . . . . . Alert | -11 -10 -10 -10 -9 -8 ------- Run | Yrd Mat Min Exi Min Mat Maximum Alert Level . | . . . . . . Low Security (%) 100 | 100 100 100 . 100 100 Level 1 . | . . . . . . Level 2 . | . . . . . . Level 3 . | . . . . . . Level 4 . | . . . . . . Level 5 . | . . . . . . High Security . | . . . . . . Max Security . | . . . . . . Peak Influence 88 | . 77 25 . . 88 Initial 25 | . . 25 . . . Average 11 | . 15 15 . . 14 Influence Increases 516 | . 269 . . . 247 Destroy 0b10 Robot/C 280 | . 160 . . . 120 Destroy 0b10 Robot/NC 25 | . 15 . . . 10 Destroy Leader 60 | . 40 . . . 20 Successful Hack 40 | . 26 . . . 14 Disable Machine 30 | . 15 . . . 15 Destroy Structure 36 | . 13 . . . 23 Lose Combat Pursuer 45 | . . . . . 45 Influence Decreases 516 | . 204 60 5 . 247 Entered New Map 45 | . . 40 5 . . Time Decay 381 | . 194 20 . . 167 Lost Part 90 | . 10 . . . 80 Squads Dispatched 3 | . 3 . . . . Investigation 2 | . 2 . . . . Extermination . | . . . . . . Reinforcement 1 | . 1 . . . . Assault . | . . . . . . Garrison . | . . . . . . Intercept . | . . . . . . Searches Triggered . | . . . . . . Construction Impeded . | . . . . . . Haulers Reinforced . | . . . . . . Active Scanning Responses . | . . . . . . Cargo Convoy Interrupts . | . . . . . . Stealth | -11 -10 -10 -10 -9 -8 --------- Run | Yrd Mat Min Exi Min Mat Distress Signals 2 | . . . . . 2 Communications Jammed . | . . . . . . Distress Signals . | . . . . . . Times Spotted 35 | . 19 . . . 16 Peak Tracking Total 5 | . 5 . . . 4 Tactical Retreats 6 | . 4 . . . 2 Traps | -11 -10 -10 -10 -9 -8 ------- Run | Yrd Mat Min Exi Min Mat Traps Triggered 1 | . 1 . . . . Indirectly . | . . . . . . Trap Hack Attempts . | . . . . . . Triggered . | . . . . . . Disarmed . | . . . . . . Reprogrammed . | . . . . . . Reused . | . . . . . . Traps Extracted . | . . . . . . Installed . | . . . . . . Triggered . | . . . . . . Machines | -11 -10 -10 -10 -9 -8 ---------- Run | Yrd Mat Min Exi Min Mat Machines Disabled 2 | . 1 . . . 1 Max in Single Turn 1 | . 1 . . . 1 Garrison Access 1 | . . . . . 1 Machines Repaired . | . . . . . . Machines Dismantled . | . . . . . . Machines Sabotaged . | . . . . . . Overloaded Fab Kills . | . . . . . . Hacking | -11 -10 -10 -10 -9 -8 --------- Run | Yrd Mat Min Exi Min Mat Machines Accessed 6 | . 2 . 1 1 2 Terminals 3 | . 2 . . . 1 Fabricators . | . . . . . . Repair Stations . | . . . . . . Recycling Units . | . . . . . . Scanalyzers . | . . . . . . Garrison Access 1 | . . . . . 1 Total Hacks 11 | . 5 . 1 1 4 Successful 7 | . 3 . 1 1 2 Failed 4 | . 2 . . . 2 Catastrophic 2 | . 1 . . . 1 Database Lockouts . | . . . . . . Manual 1 | . . . 1 . . Terminals 6 | . 5 . . . 1 Fabricators . | . . . . . . Repair Stations . | . . . . . . Recycling Units . | . . . . . . Scanalyzers . | . . . . . . Garrison Access 3 | . . . . . 3 Terminal Hacks 6 | . 3 . 1 1 1 Record 1 | . 1 . . . . Open Door 1 | . . . . 1 . Alert Level 1 | . 1 . . . . Locate Traps 1 | . 1 . . . . Zone Layout 1 | . . . . . 1 Proto ID Catalog 1 | . . . 1 . . Fabricator Hacks . | . . . . . . Repair Station Hacks . | . . . . . . Recycling Unit Hacks . | . . . . . . Scanalyzer . | . . . . . . Garrison Access Hacks 1 | . . . . . 1 Seal Access 1 | . . . . . 1 Unauthorized Hacks . | . . . . . . Terminals . | . . . . . . Fabricators . | . . . . . . Repair Stations . | . . . . . . Recycling Units . | . . . . . . Scanalyzers . | . . . . . . Garrison Access . | . . . . . . Data Cores Recovered . | . . . . . . Used . | . . . . . . Hacking Detections 4 | . 2 . . . 2 Full Trace Events 1 | . 1 . . . . Feedback Events . | . . . . . . Feedback Blocked . | . . . . . . Robot Schematics Acquired . | . . . . . . Robots Built . | . . . . . . Authchips . | . . . . . . Time . | . . . . . . Total Robot Build Rating . | . . . . . . Part Schematics Acquired . | . . . . . . Parts Built . | . . . . . . Authchips . | . . . . . . Time . | . . . . . . Total Part Build Rating . | . . . . . . Parts Repaired . | . . . . . . Time . | . . . . . . Parts Recycled . | . . . . . . Recycled Matter . | . . . . . . Retrieved Matter . | . . . . . . Retrieved Components . | . . . . . . Parts Scanalyzed . | . . . . . . Part Schematics Acquired . | . . . . . . Parts Damaged . | . . . . . . Bothacking | -11 -10 -10 -10 -9 -8 ------------ Run | Yrd Mat Min Exi Min Mat Used RIF Installer . | . . . . . . Robots Hacked . | . . . . . . Non-combat . | . . . . . . Combat . | . . . . . . Robot Hacks Applied . | . . . . . . Relay Couplers Released . | . . . . . . Fabnet Peak Effective % . | . . . . . . Robots Rewired . | . . . . . . Allies Hacked . | . . . . . . Hacks Repelled . | . . . . . . Allies | -11 -10 -10 -10 -9 -8 -------- Run | Yrd Mat Min Exi Min Mat Total Allies . | . . . . . . Largest Group . | . . . . . . Highest-Rated Group . | . . . . . . Highest-Rated Ally . | . . . . . . Total Orders . | . . . . . . Ally Attacks . | . . . . . . Total Damage . | . . . . . . Kills . | . . . . . . Allies Corrupted . | . . . . . . Allies Melted . | . . . . . . Intel | -11 -10 -10 -10 -9 -8 ------- Run | Yrd Mat Min Exi Min Mat Active Infowar (turns) 3093 | . 760 55 1107 521 650 Terrain 590 | . . . . . 590 Structural 636 | . . . . . 636 ECM 3093 | . 760 55 1107 521 650 Robot Analysis Total . | . . . . . . Derelict Logs Recovered . | . . . . . . Drone Launches . | . . . . . . Drone Recoveries . | . . . . . . Exploration | -11 -10 -10 -10 -9 -8 ------------- Run | Yrd Mat Min Exi Min Mat Turns Passed 3709 | 127 824 55 1107 521 1075 Spaces Moved 1547 | 73 412 35 558 215 254 Core 5 | 2 . . . . 3 Treads 1291 | 71 412 35 558 215 . Legs 251 | . . . . . 251 Wheels . | . . . . . . Hover . | . . . . . . Flight . | . . . . . . Fastest Speed 50 | 50 160 160 160 240 190 Average Speed 199 | 156 168 160 198 240 238 Slowest Speed 800 | 160 320 160 240 240 800 Overloaded Moves . | . . . . . . Propulsion Burnouts . | . . . . . . Robots Hopped . | . . . . . . Potential Cave-ins . | . . . . . . Cave-ins Triggered . | . . . . . . Exploration Rate (%) 36 | 5 47 16 92 44 16 Regions Visited 5 Branch Regions 3 Pre-discovered Areas . | . . . . . . Known Exits Taken . | . . . . . . Unknown Exits Taken 5 | 1 1 1 1 1 . Scrap Searched 1 | . . . . 1 . Spaces Dug . | . . . . . . Terrain Destroyed 33 | . 11 . . . 22 Melee . | . . . . . . Projectile . | . . . . . . AOE 33 | . 11 . . . 22 Terrain Rammed . | . . . . . . Walls Destroyed . | . . . . . . Machines Disabled . | . . . . . . Actions | -11 -10 -10 -10 -9 -8 --------- Run | Yrd Mat Min Exi Min Mat Total 2031 | 83 484 34 560 220 650 Wait 332 | . 18 . . . 314 Move 1542 | 72 411 34 557 214 254 Hop . | . . . . . . Pick Up 19 | 5 9 . 1 2 2 Fast Attach 15 | 6 2 . . . 7 Attach 12 | . 2 . . 1 9 Detach 2 | . . . . . 2 Swap 6 | . 3 . 1 2 . Drop 7 | . 6 . . 1 . Fire 55 | . 30 . . . 25 Melee 10 | . . . . . 10 Ram 1 | . . . . . 1 Kick 26 | . . . . . 26 Crush 3 | . 3 . . . . Escape Stasis . | . . . . . . Rewire 1 | . . . 1 . . Trap . | . . . . . . Miscellaneous . | . . . . . . Route ------- -11/Scrapyard -10/Materials (discovered 2 exits: [*Min x2]) -10/Mines -10/Exiles -9/Mines -8/Materials History --------- Turn | Location | Event 34 | -11/Scrapyard | Discovered new exit (range 15) 128 | -11/Scrapyard | Entered Materials 308 | -10/Materials | Build established: Mutant 508 | -10/Materials | Discovered new exit (range 6) 644 | -10/Materials | Discovered new exit (range 8) 952 | -10/Materials | Entered Mines 996 | -10/Mines | Deemed a non-threat by the Exiles lab entrance 997 | -10/Mines | Discovered new exit (range 5) 1007 | -10/Mines | Entered Exiles 1051 | -10/Exiles | Met 8R-AWN 1079 | -10/Exiles | Met EX-HEX 1176 | -10/Exiles | Met EX-DEC 1216 | -10/Exiles | Visited The Gauntlet 1523 | -10/Exiles | Discovered new exit (range 11) 1717 | -10/Exiles | Met EX-BIN 1758 | -10/Exiles | Aligned with FarCom system 1760 | -10/Exiles | Given EX-Vault access code 1830 | -10/Exiles | Opened EX-Vault 1885 | -10/Exiles | Found Flying Fortress v7 1934 | -10/Exiles | Warned to stay clear of 0b10 Research branches 2114 | -10/Exiles | Left Exiles lab with Flying Fortress v7 2114 | -10/Exiles | Entered Mines 2127 | -9/Mines | Found the Drone Emporium 2138 | -9/Mines | Found Prototype Device 2175 | -9/Mines | Found a Scrap Suit stashed away for nefarious purposes 2185 | -9/Mines | Found Scrap Suit 2615 | -9/Mines | Discovered new exit (range 8) 2635 | -9/Mines | Entered Materials 2635 | -8/Materials | Evolved 4 slots: Propulsion x2, Utility x2 2948 | -8/Materials | Build established: Infiltrator-Skirmisher 3272 | -8/Materials | Lost 4 parts (1n1u2w) 3316 | -8/Materials | Lost 4 parts (2n2u) 3438 | -8/Materials | Core integrity fell below 50% 3582 | -8/Materials | Build established: Mutant 3672 | -8/Materials | Core integrity fell below 20% 3710 | -8/Materials | Destroyed by Y-45 Defender with Heavy Assault Rifle Last Messages --------------- 03673_ Kicked Y-45 Defender. 03674_ Lgt. Nuclear Core destroyed. 03675_ Kicked Y-45 Defender. 03682_ Kicked Y-45 Defender out of the way. 03686_ Melee Analysis Suite destroyed. 03686_ K-01 Serf cleans the Matter Pump. 03688_ Kicked Y-45 Defender out of the way. 03690_ Garrison Access unresponsive. 03690_ Kicked Y-45 Defender. 03690_ K-01 Serf cleans the Matter Pump. 03692_ Kicked Y-45 Defender out of the way. 03696_ Kicked Y-45 Defender. 03696_ K-01 Serf collects debris. 03697_ Kicked Y-45 Defender out of the way. 03699_ Kicked Y-45 Defender. 03702_ K-01 Serf cleans the Matter Pump. 03703_ Kicked Y-45 Defender. 03707_ Carbon-fiber Leg destroyed. 03707_ Aluminum Leg destroyed. 03707_ Slammed into Y-45 Defender. Map ----- +----------------------------------------------------+ | ?????????????????????????????????????????????????? | | ?????????????????????????????????????????????????? | | ?????????????????????????????????????????????????? | | ?????????????????????????????????????????????????? | | ??????????????????????? ???????????????????????? | | ??????????????????????? ??????????????????????? | | ??????????????????????# ?? ??????????????????? | | ??????????????????????# "?? ??? #???????????? | | ??????????????????????# """ "?? #???????????? | | ??????????????????????# """w ""? #???????????? | | ??????????????????????# ? #???????????? | | ??????????????????????# ? #?????#?????? | | ??????????????????????# """ """ #??#??#??#??? | | ??????????????????????# """ """ # T ? ????#?? | | ????????????#?????????# """ """ # ?? ? ???? | | ????????????? ???????# # ?? ?????? | | ?????###+######+####### # ""? "??? ?? | | ???? w """ """ + """ """ #?? | | ???? """ """ # """ """ ##? | | ???? """ """ # #?# | | ???????????####+######k # !### | | ?????????????????????# # # ##### | | ?????????????????????# """ """ # # | | ?????????????????????# """ """ # # | | ?????????????????????# %""" """ # # | | ?????????????????????# @%% # """ # | | ?????????????????????# %Y%% # """ # | | ?????????????????????# "%"% """ # """ # | | ??????????????######## "G" """ # # | | ??????????????# # """ """ ###### ##### | | ??????????????#! ] =%# | | ??????????????# ]] !%+%% | | ??????????????#!] ###### | | ??????????????# #???######################### | | ??????????????# #???######################### | | ??????????????########?????????????#???#??????#### | | ??????????????????????????????????#??#???#??????#? | | ?????????????????????????????????#??#????????#?#?? | | ???????????????????????????????????#?????????#???? | | | | | | | | | | | | | | | | | | | | | | | +----------------------------------------------------+ Best States ------------- Heat Dissipation 31 Energy Generation 14 Energy Capacity 250 Matter Stores 300 Matter Capacity 300 Sight Range 16 Terrain Scan Range 14 Terrain Scan Density 10 ECM Strength 1 Evasion (%) 40 Melee Accuracy 10 Recoil Reduction 2 Item Schematics ----------------- None Robot Schematics ------------------ None Fabricated ------------ Nothing Repaired ---------- Nothing Alien Tech Used ----------------- None Achievements -------------- None Challenges ------------ None Game ------ Seed PowerBiocellPlatform Manual? 0 Play Time 00:19:21 Cumulative 21.1 hours Start 2025.07.25 @ 05:35:57 End 2025.07.25 @ 05:53:42 Sessions 1 Manual Loads 0 Difficulty Rogue Special Mode None Game No. 48 Rogue 48 Adventurer 0 Explorer 0 Win Type - Total 0 Types 0/0/0/0/0/0/0/0/0/0 Lore% 15 Gallery% 21 Achievement% 17 Wizard Run 0 Options --------- Layout 1 ASCII 0 Keyboard 1 Movement Numpad Keybinds 0 Fullscreen 2 Font 24/Smallcaps Map View 50x35 Zoom Use 0% Tactical HUD 1 Map Filters NONE Filters NONE Steam 1 RUN: ab3849e1-8fae-4130-a42e-711c91f6e539